{"text_format":"3","workbook":"xlsx","n_sheets":1,"sheets":["Лист1"],"read":"whole","date_system":"1900"}

{"sheet":"Лист1","index":0,"n_rows":45,"n_cols":5,"rows_kept":45,"merged":[[0,3,0,4],[3,1,3,4],[4,1,5,1],[4,2,5,2],[4,3,4,4],[7,1,12,1],[13,1,21,1],[22,1,26,1],[27,1,31,1],[32,1,34,1],[35,1,37,1],[38,1,40,1],[41,1,41,4],[44,1,44,4]]}
[{"$nulls":3},"Таблица 1"]
[{"$nulls":4},"к Приложению 3"]
[]
[null,"Информация об изменениях объемов финансирования и целевых показателей \nмуниципальной программы города Усолье-Сибирское «Обеспечение населения\n доступным жильем» на 2019-2027 годы \nза 2025 год"]
[null,"Наименование программы, подпрограммы,  основного мероприятия, мероприятия, проекта","Источники финансирования / Наименование целевого показателя","Предусмотренный объем финансирования (тыс. руб.) / Значение целевого показателя"]
[{"$nulls":3},"Редакция программы \nот 18.02.2025 № 281-па\n(на начало отчетного периода)","Редакция программы \nот 26.12.2025 № 2474-па\n(на конец отчетного периода)"]
[null,1,2,3,4]
[null,"Муниципальная программа \"Обеспечение населения доступным жильем\" на 2019 -2027 годы","Всего:",{"$f":"D9+D10+D11","v":{"v":103900.14656,"d":"103,900.15"}},{"$f":"E9+E10+E11","v":{"v":210797.26012,"d":"210,797.26"}}]
[null,null,"Местный бюджет",{"$f":"D15","v":{"v":7293.51384,"d":"7,293.51"}},{"v":69138.9114,"d":"69,138.91"}]
[null,null,"Областной бюджет",{"v":37412.784,"d":"37,412.78"},{"v":82464.5,"d":"82,464.50"}]
[null,null,"Средства Фонда",{"v":59193.84872,"d":"59,193.85"},{"v":59193.84872,"d":"59,193.85"}]
[null,null,"Целевой показатель 1\n Количество граждан, переселенных из многоквартирных домов, признанных в установленном порядке аварийными и подлежащими сносу (человек)  ","266*","265*"]
[null,null,"Целевой показатель 2\nПлощадь снесенного аварийного жилищного фонда, признанного после 01 января 2012 года в установленном порядке аварийным и подлежащим сносу в связи с физическим износом в процессе эксплуатации (кв.м). ",{"v":14283.94,"d":"14,283.94"},{"v":2241.08,"d":"2,241.08"}]
[null,"Подпрограмма 1 \"Переселение граждан из аварийного жилищного фонда в городе Усолье-Сибирское\" на 2019-2027 годы","Всего:",{"$f":"D15+D16+D17","v":{"v":103900.14656,"d":"103,900.15"}},{"$f":"E15+E16+E17","v":{"v":210797.26012,"d":"210,797.26"}}]
[null,null,"Местный бюджет",{"$f":"D24+D29+D34+D37+D40","v":{"v":7293.51384,"d":"7,293.51"}},{"$f":"E24+E29+E34+E37+E40","v":{"v":69138.9114,"d":"69,138.91"}}]
[null,null,"Областной бюджет",{"$f":"D25+D30","v":{"v":37412.784,"d":"37,412.78"}},{"$f":"E25+E30","v":{"v":82464.5,"d":"82,464.50"}}]
[null,null,"Средства Фонда",{"$f":"D26","v":{"v":59193.84872,"d":"59,193.85"}},{"$f":"E26","v":{"v":59193.84872,"d":"59,193.85"}}]
[null,null,"Целевой показатель 1\n Количество граждан, переселенных из многоквартирных домов, признанных в установленном порядке аварийными и подлежащими сносу (человек)  ","266*","265*"]
[null,null,"Целевой показатель 2\nПлощадь снесенного аварийного жилищного фонда, признанного после 01 января 2012 года в установленном порядке аварийным и подлежащим сносу в связи с физическим износом в процессе эксплуатации (кв.м). ",{"v":14283.94,"d":"14,283.94"},{"v":2241.08,"d":"2,241.08"}]
[null,null,"Целевой показатель 3\nКоличество выданных заключений специализированной организации, проводившей обследования жилых домов (шт.)",0,2]
[null,null,"Целевой показатель 5 \nКоличество разработанной проектной документации (ед.)",1,1]
[null,null,"Целевой показатель 6\nКоличество жилых помещений, признанных аварийными до 01.01.2017 года, по которым проведена оценка рыночной стоимости (ед.)",0,3]
[null,"Основное мероприятие 1.1. Переселение граждан, проживающих в домах, признанных непригодными для проживания","Всего:",{"$f":"D24+D25+D26","v":{"v":101106.63272,"d":"101,106.63"}},{"$f":"E24+E25+E26","v":{"v":207866.76012,"d":"207,866.76"}}]
[null,null,"Местный бюджет",{"v":4500,"d":"4,500.00"},{"v":66208.4114,"d":"66,208.41"}]
[null,null,"Областной бюджет",{"v":37412.784,"d":"37,412.78"},{"v":82464.5,"d":"82,464.50"}]
[null,null,"Средства Фонда",{"v":59193.84872,"d":"59,193.85"},{"v":59193.84872,"d":"59,193.85"}]
[null,null,"Целевой показатель 1\n Количество граждан, переселенных из многоквартирных домов, признанных в установленном порядке аварийными и подлежащими сносу (человек)  ","266*","265*"]
[null,"Основное мероприятие 1.2. \nСнос аварийного жилищного фонда, признанного после 01.01. 2012 года в установленном порядке аварийным и подлежащим сносу, в связи с физическим износом в процессе его эксплуатации","Всего:",{"$f":"D29+D30+D31","v":{"v":2653.51384,"d":"2,653.51"}},{"$f":"E29+E30+E31","v":{"v":2587,"d":"2,587.00"}}]
[null,null,"Местный бюджет",{"v":2653.51384,"d":"2,653.51"},{"v":2587,"d":"2,587.00"}]
[null,null,"Областной бюджет",{"v":0,"d":"0.00"},{"v":0,"d":"0.00"}]
[null,null,"Средства Фонда",{"v":0,"d":"0.00"},{"v":0,"d":"0.00"}]
[null,null,"Целевой показатель 2\nПлощадь снесенного аварийного жилищного фонда, признанного после 01 января 2012 года в установленном порядке аварийным и подлежащим сносу в связи с физическим износом в процессе эксплуатации (кв.м). ",{"v":14283.94,"d":"14,283.94"},{"v":2241.08,"d":"2,241.08"}]
[null,"Основное мероприятие 1.3. Обследование технического состояния и выдача заключений на жилые дома","Всего",{"$f":"D34","v":{"v":140,"d":"140.00"}},{"$f":"E34","v":{"v":88.5,"d":"88.50"}}]
[null,null,"Местный бюджет",{"v":140,"d":"140.00"},{"v":88.5,"d":"88.50"}]
[null,null,"Целевой показатель 3\nКоличество выданных заключений специализированной организации, проводившей обследования жилых домов (шт.)",0,2]
[null,"Основное мероприятие 1.5. Проектирование строительства многоквартирных домов","Всего",{"$f":"D37","v":{"v":0,"d":"0.00"}},{"$f":"E37","v":{"v":240,"d":"240.00"}}]
[null,null,"Местный бюджет",{"v":0,"d":"0.00"},{"v":240,"d":"240.00"}]
[null,null,"Целевой показатель 5 \nКоличество разработанной проектной документации (ед.)",1,1]
[null,"Основное мероприятие 1.6. Оценка рыночной стоимости жилых помещений, признанных аварийными до 01.01.2017 года","Всего",{"$f":"D40","v":{"v":0,"d":"0.00"}},{"$f":"E40","v":{"v":15,"d":"15.00"}}]
[null,null,"Местный бюджет",{"v":0,"d":"0.00"},{"v":15,"d":"15.00"}]
[null,null,"Целевой показатель 6\nКоличество жилых помещений, признанных аварийными до 01.01.2017 года, по которым проведена оценка рыночной стоимости (ед.)",0,3]
[null,"*При внесении изменений в Программу от 18.02.2025 г. № 281-па (далее все изменения в Программу в 2025 году) при корректировке значения целевого показателя допущена ошибка (плановое значение необходимо считать – 373 ед.). "]
[]
[]
[null,"Мэр города Усолье-Сибирское                                                 М.В. Торопкин"]